lending/lending_fUSD_20240824
["ID","MTS","AMOUNT","RATE_DAILY","PERIOD"]
[335842802,1724529636264,500.0,0.0001,2]
[335842803,1724529636324,500.0,0.0001,2]
[335842804,1724529637044,500.0,0.0001,2]
[335842805,1724529637107,500.0,0.0001,2]
[335842806,1724529637884,500.0,0.0001,2]
[335842807,1724529638213,500.0,0.0001,2]
[335842808,1724529638636,500.0,0.0001,2]
[335842809,1724529638966,500.0,0.0001,2]
[335842810,1724529639462,500.0,0.0001,2]
[335842811,1724529661939,155.0,0.00010009,2]
[335842813,1724529687018,282.72505867,0.00010009,2]
[335842814,1724529697523,713.94,9.98e-05,2]
[335842815,1724529704074,500.0,0.0001,2]
[335842816,1724529704568,500.0,0.0001,2]
[335842817,1724529704818,500.0,0.0001,2]
[335842818,1724529705331,500.0,0.0001,2]
[335842819,1724529705564,500.0,0.0001,2]
[335842820,1724529706078,500.0,0.0001,2]
[335842821,1724529706806,500.0,0.0001,2]
[335842822,1724529706836,500.0,0.0001,2]
[335842823,1724529707571,500.0,0.0001,2]
[335842824,1724529708541,500.0,0.0001,2]
[335842825,1724529709103,500.0,0.0001,2]
[335842826,1724529709863,500.0,0.0001,2]
[335842827,1724529710613,500.0,0.0001,2]
[335842828,1724529711362,500.0,0.0001,2]
[335842829,1724529712224,500.0,0.0001,2]
[335842830,1724529712963,500.0,0.0001,2]
[335842831,1724529713737,500.0,0.0001,2]
[335842832,1724529714504,500.0,0.0001,2]
[335842833,1724529715252,500.0,0.0001,2]
[335842834,1724529716022,583.81,0.0001,2]
[335842835,1724529746569,296.93099811,0.00010009,2]
[335842836,1724529754853,379.46994319,0.00010009,2]
[335842838,1724529758576,840.0,9.903e-05,2]
[335842839,1724529773769,500.0,0.0001,2]
[335842840,1724529774551,155.5,0.0001,2]
[335842841,1724529775109,402.73861596,0.00010009,2]
[335842842,1724529815768,224.13,9.907e-05,2]
[335842843,1724529842224,374.58559921,0.00010009,2]
[335842844,1724529930420,173.85,9.913e-05,2]
[335842845,1724530035995,2844.20617039,0.00010009,2]
[335842846,1724530049669,250.0,9.903e-05,2]
[335842847,1724530079952,233.17,9.922e-05,2]
[335842848,1724530092076,300.29,8.219e-05,2]
[335842849,1724530096561,2111.83717658,0.00010009,2]
[335842857,1724530119674,439.92807539,0.00010009,2]
[335842871,1724530185452,160.0,0.00010009,2]
[335842874,1724530199412,155.0,0.00010009,2]
[335842875,1724530232490,-291.95664561,0.00010026,2]
[335842876,1724530232500,-15.52053884,0.00010026,2]
[335842877,1724530238338,-315.43704708,0.00010026,2]
[335842878,1724530238348,-300.29,0.00010472,2]
[335842879,1724530238358,-220.72702,0.0001069,2]
[335842880,1724530238368,-150.0,0.00010699,2]
[335842881,1724530238377,-157.10906008,0.000107,2]
[335842882,1724530238386,-1000.0,0.000107,2]
[335842883,1724530238395,-304.16311529,0.000107,2]
[335842884,1724530238406,-491.95327024,0.000107,2]
[335842885,1724530238415,-1910.0835,0.000107,2]
[335842886,1724530238424,-1412.72174294,0.000107,2]
[335842887,1724530238434,-150.67,0.0001079,2]
[335842888,1724530238444,-150.67,0.0001079,2]
[335842889,1724530238454,-150.67,0.0001079,2]
[335842890,1724530238463,-150.67,0.0001079,2]
[335842891,1724530238472,-150.67,0.0001079,2]
[335842892,1724530238482,-150.67,0.0001079,2]
[335842893,1724530238491,-150.67,0.0001079,2]
[335842894,1724530238500,-150.67,0.0001079,2]
[335842895,1724530238510,-1084.97522076,0.00010793,2]
[335842896,1724530238708,-1388.09553447,0.00010793,2]
[335842897,1724530238730,-987.45743925,0.00010793,2]
[335842898,1724530238746,-2807.44180552,0.00010793,2]
[335842899,1724530238756,-2266.921982,0.00010793,2]
[335842900,1724530238765,-2013.83929035,0.00010797,2]
[335842901,1724530238775,-1003.78206976,0.00010799,3]
[335842902,1724530238784,-1003.78206976,0.00010799,3]
[335842903,1724530238793,-1003.78206976,0.00010799,3]
[335842904,1724530238803,-1003.78206975,0.00010799,3]
[335842905,1724530238812,-7134.1854825,0.000108,2]
[335842906,1724530238824,-1415.65028667,0.000108,2]
[335843048,1724530240549,-165.19422617,0.000107,2]
[335843050,1724530240559,-430.11678893,0.000108,2]
[335843056,1724530240602,-3419.99457149,0.000108,2]
[335843067,1724530240714,-430.83949475,0.000108,2]
[335843358,1724530243396,-1056.06830296,0.000108,2]
[335844580,1724530261874,400.0,0.0001,3]
[335844584,1724530342968,328.0,9.893e-05,2]
[335844585,1724530362887,280.2,0.0001,2]
[335844586,1724530369604,224.16,9.883e-05,2]
[335844587,1724530385569,1050.0,0.0001,2]
[335844590,1724530575840,288.2,8.219e-05,2]
[335844591,1724530601809,246.29,9.825e-05,2]
[335844594,1724530812950,5409.69686454,0.00010009,2]
[335844595,1724530868570,11205.58254513,0.00010009,2]
[335844596,1724530876978,737.6,9.762e-05,2]
[335844597,1724530912838,552.1151,0.0001,2]
[335844598,1724530913535,220.69,9.769e-05,2]
[335844599,1724530975956,1269.9153111,9.769e-05,2]
[335844600,1724530989351,172.87,9.71e-05,2]
[335844601,1724531014554,392.76929337,9.926e-05,2]
[335844602,1724531019503,392.76929336,9.963e-05,2]
[335844603,1724531024481,392.76929336,0.0001,2]
[335844605,1724531040569,6178.99480044,9.71e-05,2]
[335844606,1724531044198,539.92761692,0.00010009,2]
[335844607,1724531046499,155.0,0.00010009,2]
[335844608,1724531070916,197.9462959,0.00010009,2]
[335844609,1724531116545,282.99,8.219e-05,2]
[335844610,1724531119082,155.57632228,0.00010009,2]
[335844611,1724531133045,1975.9,9.892e-05,2]
[335844612,1724531135000,246.29,9.797e-05,2]
[335844614,1724531232860,186.25460476,9.926e-05,2]
[335844615,1724531233887,400.0,9.9e-05,3]
[335844616,1724531236002,800.0,0.0001,3]
[335844617,1724531245367,10565.09340602,0.00010009,2]
[335844618,1724531248409,155.0,0.00010009,2]
[335844619,1724531290318,153.41,6.976e-05,2]
[335844626,1724531374723,155.0,8.456e-05,2]
[335844636,1724531385708,409.92,9.691e-05,2]
[335844637,1724531392110,724.95498779,8.456e-05,2]
[335844651,1724531431532,-2158.62326234,0.00010026,2]
[335844652,1724531431541,-1298.23330788,0.00010026,2]
[335844653,1724531431550,-1739.57017204,0.00010026,2]
[335844654,1724531431559,-989.1217656,0.00010097,2]
[335844655,1724531431568,-178.80521602,0.00010097,2]
[335844656,1724531431577,-164.37927092,0.00010097,2]
[335844657,1724531431587,-1300.0,0.000101,3]
[335844658,1724531431596,-1700.0,0.000102,3]
[335844659,1724531431606,-255.39001683,0.0001025,2]
[335844660,1724531431615,-2100.0,0.000103,3]
[335844661,1724531431624,-4370.0,0.00010374,2]
[335844662,1724531431634,-400.0,0.000104,3]
[335844663,1724531431643,-282.99,0.00010464,2]
[335844664,1724531431652,-825.26844955,0.00010471,2]
[335844665,1724531431662,-167.99295525,0.00010471,2]
[335844666,1724531431671,-158.39644401,0.00010471,2]
[335844667,1724531431681,-600.74422133,0.00010471,2]
[335844668,1724531431691,-297.48958849,0.00010471,2]
[335844669,1724531431700,-155.0,0.00010471,2]
[335844670,1724531431710,-499.99,0.00010479,2]
[335844671,1724531431719,-150.0,0.00010499,2]
[335844672,1724531431729,-639.77,0.000105,2]
[335844673,1724531431738,-1011.51,0.000105,2]
[335844674,1724531431748,-358.32,0.000105,2]
[335844675,1724531431757,-400.0,0.000105,3]
[335844676,1724531431767,-426.91,0.000105,2]
[335844677,1724531431776,-150.0,0.000105,2]
[335844678,1724531431786,-150.0,0.000105,2]
[335844679,1724531431795,-421.55,0.000105,2]
[335844680,1724531431804,-790.9,0.000105,2]
[335844681,1724531431813,-531.62,0.000105,2]
[335844682,1724531431823,-783.92,0.00010505,2]
[335844683,1724531431832,-485.18668102,0.00010505,2]
[335844684,1724531431842,-771.03349108,0.00010505,2]
[335844685,1724531431851,-155.0,0.00010505,2]
[335844686,1724531431861,-893.43190844,0.00010505,2]
[335844687,1724531431871,-165.0,0.00010505,2]
[335844688,1724531431881,-155.0,0.00010505,2]
[335844689,1724531431891,-3569.13124254,0.00010566,2]
[335844690,1724531431901,-5664.72,0.00010585,2]
[335844691,1724531431911,-150.99,0.00010585,2]
[335844692,1724531431921,-531.62,0.000106,2]
[335844693,1724531431931,-400.0,0.000106,3]
[335844694,1724531431941,-468.60163879,0.0001069,2]
[335844695,1724531431951,-203.24103,0.00010692,2]
[335844696,1724531431960,-151.15626,0.00010692,2]
[335844697,1724531431969,-802.04083643,0.000107,2]
[335844698,1724531431979,-1263.1381,0.000107,2]
[335844699,1724531431988,-5256.2046,0.000107,2]
[335844700,1724531431998,-157.10906008,0.000107,2]
[335844701,1724531432007,-400.0,0.000107,3]
[335844702,1724531432016,-322.9467522,0.000107,2]
[335844703,1724531432026,-155.0,0.00010713,2]
[335844704,1724531432038,-155.0,0.00010713,2]
[335844705,1724531432048,-150.55,0.0001079,2]
[335844706,1724531432057,-150.55,0.0001079,2]
[335844707,1724531432066,-150.55,0.0001079,2]
[335844708,1724531432077,-150.55,0.0001079,2]
[335844709,1724531432086,-150.55,0.0001079,2]
[335844710,1724531432095,-150.55,0.0001079,2]
[335844711,1724531432104,-4638.2123618,0.00010793,2]
[335844712,1724531432116,-19437.0020413,0.00010793,2]
[335844713,1724531432126,-1832.5838771,0.00010793,2]
[335844714,1724531432304,-16272.58682988,0.00010797,2]
[335844715,1724531432313,-1031.54405097,0.00010799,3]
[335844716,1724531432322,-5919.30568265,0.00010799,2]
[335844717,1724531432332,-484879.89972505,0.000108,2]
[335844718,1724531432545,-356.88107954,0.000108,2]
[335844719,1724531432567,-2577.98896431,0.000108,2]
[335844720,1724531432579,-438.97982347,0.000108,2]
[335844721,1724531432594,-507.30078425,0.000108,2]
[335844722,1724531432606,-2291.94185801,0.000108,2]
[335844723,1724531432618,-17918.86502658,0.000108,2]
[335844725,1724531437515,-1620.98813397,0.00010097,2]
[335844726,1724531437525,-160.27757016,0.00010471,2]
[335844727,1724531437536,-32259.02231365,0.000108,2]
[335844728,1724531437547,-1952.74361478,0.000108,2]
[335844729,1724531437627,-1566.97618854,0.000108,2]
[335844730,1724531437683,-957.79744178,0.000108,2]
[335844731,1724531437740,-989.24599344,0.000108,2]
[335844732,1724531437751,-1111.77020811,0.000108,2]
[335844735,1724531437829,-820.5999,0.000108,2]
[335844762,1724531439684,-268.2,0.000108,2]
[335844763,1724531439863,-2000.0,0.000108,2]
[335844764,1724531439920,-25766.29237168,0.000108,2]
[335844765,1724531440039,-321.58,0.000108,2]
[335844782,1724531442745,-15771.59981278,0.000108,2]
[335844808,1724531445668,-40997.95890271,0.000108,2]
[335851480,1724531516707,223.44,9.963e-05,2]
[335852755,1724531618102,272.19,8.219e-05,2]
[335852756,1724531696163,200.0,9.914e-05,2]
[335852757,1724531704571,4573.78,9.914e-05,2]
[335852758,1724531727731,432.47832469,9.962e-05,2]
[335852759,1724531779778,188.31,7.916e-05,2]
[335852760,1724531885424,263.27631387,9.595e-05,2]
[335852761,1724531894634,18910.0,0.0001,2]
[335852765,1724531965216,3941.4888216,0.00010009,2]
[335852766,1724532006414,1000.0,9.897e-05,2]
[335852767,1724532026010,5409.69686454,0.00010009,2]
[335852768,1724532043998,223.48,9.873e-05,2]
[335852769,1724532137679,269.89,8.219e-05,2]
[335852770,1724532178169,644.99793751,9.962e-05,2]
[335852771,1724532190346,1050.0,0.0001,2]
[335852772,1724532219083,184.16,9.856e-05,2]
[335852775,1724532300637,2844.20617039,0.00010009,2]
[335852776,1724532301342,152.98,7.104e-05,2]
[335852777,1724532323652,565.632,9.976e-05,2]
[335852778,1724532324842,650.5910874,0.00010009,2]
[335852779,1724532346145,1621.88645632,8.611e-05,2]
[335852780,1724532355569,547.93978231,0.0001,2]
[335852781,1724532380335,648.79354031,8.611e-05,2]
[335852782,1724532380385,155.0,0.00010009,2]
[335852783,1724532399838,155.0,0.00010009,2]
[335852786,1724532568608,200.0,9.858e-05,2]
[335852787,1724532593148,8296.79,9.863e-05,2]
[335852793,1724532597463,221.24,9.858e-05,2]
[335852805,1724532631949,-1443.6854515,0.000101,3]
[335852806,1724532632006,-462.53216332,0.000101,3]
[335852807,1724532632017,-534.83187124,0.000101,3]
[335852808,1724532632062,-8131.4151783,0.000101,3]
[335852810,1724532637745,-450.95372915,0.000103,5]
[335852811,1724532637852,-11052.04627085,0.000103,5]
[335852812,1724532637861,-150.0,0.00010466,2]
[335852813,1724532637871,-269.89,0.00010471,2]
[335852814,1724532637881,-1000.0,0.000105,2]
[335852815,1724532637890,-259.0720861,0.0001069,2]
[335852816,1724532637899,-1860.7009197,0.0001069,2]
[335852817,1724532637908,-150.0,0.00010699,2]
[335852818,1724532637918,-155.0,0.00010699,2]
[335852819,1724532637927,-305.51506859,0.00010699,2]
[335852820,1724532637937,-1200.781944,0.000107,2]
[335852821,1724532637947,-3307.527,0.000107,2]
[335852822,1724532637957,-1129.1661,0.000107,2]
[335852823,1724532637970,-1525.6402,0.000107,2]
[335852824,1724532637979,-1397.0818,0.000107,2]
[335852825,1724532637988,-4660.49678287,0.000107,2]
[335852826,1724532637999,-3593.35811713,0.000107,2]
[335852827,1724532638008,-173.5900964,0.000107,2]
[335852828,1724532638017,-322.94675217,0.000107,2]
[335852829,1724532638026,-420.25,0.00010713,2]
[335852830,1724532638034,-3873.21,0.00010713,2]
[335852831,1724532638043,-155.0,0.00010713,2]
[335852832,1724532638052,-793.72,0.00010783,2]
[335852833,1724532638061,-150.6,0.0001079,2]
[335852834,1724532638070,-150.6,0.0001079,2]
[335852835,1724532638081,-150.6,0.0001079,2]
[335852836,1724532638090,-1121.5836725,0.00010793,2]
[335852837,1724532638100,-16152.4820965,0.00010793,2]
[335852838,1724532638109,-3847.7357776,0.00010793,2]
[335852839,1724532638119,-581.6326797,0.00010797,2]
[335852840,1724532638128,-1076.33197959,0.00010799,3]
[335852842,1724532638137,-1076.33197959,0.00010799,3]
[335852844,1724532638147,-1076.33197959,0.00010799,3]
[335852846,1724532638157,-1076.33197959,0.00010799,3]
[335852848,1724532638166,-1076.33197961,0.00010799,3]
[335852850,1724532638175,-486.69921639,0.00010799,2]
[335852852,1724532638185,-538.0,0.000108,2]
[335852854,1724532638193,-1055950.7088379,0.000108,2]
[335852856,1724532638206,-1500.0,0.000108,2]
[335852859,1724532638225,-930.0,0.000101,3]
[335852861,1724532638235,-1229.36118124,0.000108,2]
[335853012,1724532639793,-3367.5,0.000108,2]
[335853015,1724532639903,-3145.404275,0.000108,2]
[335853017,1724532639915,-4695.87836017,0.000108,2]
[335853023,1724532639963,-2123.07399969,0.000108,2]
[335853040,1724532640126,-1966.49143172,0.000108,2]
[335853042,1724532640137,-8040.38885076,0.000108,2]
[335853319,1724532642826,-7083.8768,0.000108,2]
[335853326,1724532642881,-569.2128866,0.000108,2]
[335853333,1724532642938,-354.726,0.000108,2]
[335853555,1724532646225,-5725.10180032,0.000108,2]
[335853556,1724532646236,-1956.77125,0.000108,2]
[335853577,1724532660380,250.0,9.982e-05,2]
[335853579,1724532667231,266.71,8.219e-05,2]
[335853580,1724532733675,155.0,9.962e-05,2]
[335853581,1724532751942,994.37542541,9.962e-05,2]
[335853582,1724532770034,275.46,9.939e-05,2]
[335853583,1724532778456,18783.09,9.939e-05,2]
[335853584,1724532797644,152.98,7.191e-05,2]
[335853585,1724532823036,170.2,9.919e-05,2]
[335853586,1724532858272,-666.99390921,0.00018,30]
[335853587,1724532858297,-2611.36,0.000189,31]
[335853588,1724532858321,-2611.36,0.000189,31]
[335853589,1724532858345,-2611.36,0.000189,31]
[335853590,1724532858369,-2611.36,0.000189,31]
[335853591,1724532858393,-2611.36,0.000189,31]
[335853592,1724532858417,-2611.36,0.000189,31]
[335853593,1724532858441,-2611.36,0.000189,31]
[335853594,1724532858467,-2611.36,0.000189,31]
[335853595,1724532858492,-2611.36,0.000189,31]
[335853596,1724532858516,-2611.36,0.000189,31]
[335853597,1724532858541,-2611.36,0.000189,31]
[335853598,1724532858565,-2611.36,0.000189,31]
[335853599,1724532858589,-2611.36,0.000189,31]
[335853600,1724532858613,-2611.36,0.000189,31]
[335853601,1724532858639,-2611.36,0.000189,31]
[335853602,1724532858663,-2611.36,0.000189,31]
[335853603,1724532858689,-238.85707624,0.00021,30]
[335853604,1724532858712,-2326.91,0.00021589,30]
[335853605,1724532858738,-250.0,0.00022,30]
[335853606,1724532858763,-2611.36,0.000226,31]
[335853607,1724532858787,-2611.36,0.000226,31]
[335853608,1724532858810,-2611.36,0.000226,31]
[335853609,1724532858838,-2611.36,0.000226,31]
[335853610,1724532858863,-2611.36,0.000226,31]
[335853611,1724532858893,-2611.36,0.000226,31]
[335853612,1724532858918,-2611.36,0.000226,31]
[335853613,1724532858943,-2611.36,0.000226,31]
[335853614,1724532858968,-2611.36,0.000226,31]
[335853615,1724532858993,-2611.36,0.000226,31]
[335853616,1724532859018,-2611.36,0.000226,31]
[335853617,1724532859044,-2611.36,0.000226,31]
[335853618,1724532859069,-2611.36,0.000226,31]
[335853619,1724532859287,-2611.36,0.000226,31]
[335853620,1724532859314,-2611.36,0.000226,31]
[335853621,1724532859339,-2611.36,0.000226,31]
[335853622,1724532859363,-2611.36,0.000226,31]
[335853623,1724532859389,-2611.36,0.000226,31]
[335853624,1724532859414,-2611.36,0.000226,31]
[335853625,1724532859437,-2611.36,0.000226,31]
[335853626,1724532859463,-2611.36,0.000226,31]
[335853627,1724532859488,-2611.36,0.000226,31]
[335853628,1724532859512,-2611.36,0.000226,31]
[335853629,1724532859537,-2611.36,0.000226,31]
[335853630,1724532859564,-2404.53531324,0.00024,30]
[335853631,1724532859588,-5000.97847,0.00024,30]
[335853632,1724532859612,-2110.0,0.000245,30]
[335853633,1724532859638,-1000.0,0.00024658,30]
[335853634,1724532859660,-1000.0,0.00024658,30]
[335853635,1724532859684,-1000.0,0.00024658,30]
[335853636,1724532859708,-1000.0,0.00024658,30]
[335853637,1724532859731,-1000.0,0.00024658,30]
[335853638,1724532859753,-1000.0,0.00024658,30]
[335853639,1724532859776,-1000.0,0.00024658,30]
[335853640,1724532859798,-1000.0,0.00024658,30]
[335853641,1724532859821,-1000.0,0.00024658,30]
[335853642,1724532859844,-1000.0,0.00024658,30]
[335853643,1724532859866,-1000.0,0.00024658,30]
[335853644,1724532859888,-1000.0,0.00024658,30]
[335853645,1724532859911,-1000.0,0.00024658,30]
[335853646,1724532859934,-1000.0,0.00024658,30]
[335853647,1724532859957,-1000.0,0.00024658,30]
[335853648,1724532859979,-1000.0,0.00024658,30]
[335853649,1724532860002,-1000.0,0.00024658,30]
[335853650,1724532860025,-1000.0,0.00024658,30]
[335853651,1724532860047,-1000.0,0.00024658,30]
[335853652,1724532860069,-1956.82953921,0.00024658,30]
[335853653,1724532860093,-2326.91,0.0002475,30]
[335853654,1724532860118,-2326.21334191,0.00025,30]
[335853655,1724532860141,-2100.0,0.00025,30]
[335853656,1724532860164,-250.0,0.00025,30]
[335853657,1724532860187,-1000.0,0.00025,30]
[335853658,1724532860210,-2110.0,0.00025,30]
[335853659,1724532860235,-2110.0,0.000255,30]
[335853660,1724532860258,-2110.0,0.00026,30]
[335853661,1724532860285,-2611.36,0.000262,31]
[335853662,1724532860308,-2611.36,0.000262,31]
[335853663,1724532860333,-2611.36,0.000262,31]
[335853664,1724532860357,-2611.36,0.000262,31]
[335853665,1724532860382,-2611.36,0.000262,31]
[335853666,1724532860406,-2611.36,0.000262,31]
[335853667,1724532860431,-2611.36,0.000262,31]
[335853668,1724532860454,-2611.36,0.000262,31]
[335853669,1724532860479,-2611.36,0.000262,31]
[335853670,1724532860504,-2611.36,0.000262,31]
[335853671,1724532860529,-2611.36,0.000262,31]
[335853672,1724532860554,-2611.36,0.000262,31]
[335853673,1724532860579,-2611.36,0.000262,31]
[335853674,1724532860602,-2611.36,0.000262,31]
[335853675,1724532860629,-2611.36,0.000262,31]
[335853676,1724532860653,-2611.36,0.000262,31]
[335853677,1724532860677,-2611.36,0.000262,31]
[335853678,1724532860701,-2611.36,0.000262,31]
[335853679,1724532860725,-2611.36,0.000262,31]
[335853680,1724532860749,-2611.36,0.000262,31]
[335853681,1724532860773,-2611.36,0.000262,31]
[335853682,1724532860797,-2611.36,0.000262,31]
[335853683,1724532860821,-2611.36,0.000262,31]
[335853684,1724532860844,-2611.36,0.000262,31]
[335853685,1724532860866,-2110.0,0.000265,30]
[335853686,1724532860890,-581.0,0.00027,30]
[335853687,1724532860913,-525674.59619517,0.00027,30]
[335853688,1724532860935,-9630.43720693,0.00027,90]
[335853689,1724532860957,-1092.5001452,0.00027,30]
[335853690,1724532860979,-2110.0,0.00027,30]
[335853691,1724532861001,-1033.11136111,0.00027,30]
[335853692,1724532861024,-500.0,0.00027,30]
[335853693,1724532861046,-500.0,0.00027,30]
[335853694,1724532861068,-500.0,0.00027,30]
[335853695,1724532861090,-500.0,0.00027,30]
[335853696,1724532861111,-500.0,0.00027,30]
[335853697,1724532861134,-500.0,0.00027,30]
[335853698,1724532861156,-500.0,0.00027,30]
[335853699,1724532861178,-500.0,0.00027,30]
[335853700,1724532861201,-500.0,0.00027,30]
[335853701,1724532861224,-500.0,0.00027,30]
[335853702,1724532861247,-500.0,0.00027,30]
[335853703,1724532861269,-500.0,0.00027,30]
[335853704,1724532861291,-445.3675856,0.00027,30]
[335853705,1724532861337,-150.0,0.00027155,120]
[335853706,1724532861360,-150.0,0.00027176,120]
[335853707,1724532861383,-150.0,0.00027303,120]
[335853708,1724532861407,-150.0,0.00027313,120]
[335853709,1724532861429,-150.0,0.00027315,120]
[335853710,1724532861454,-2000.0,0.00027397,30]
[335853711,1724532861479,-2000.0,0.00027397,30]
[335853712,1724532861501,-2000.0,0.00027397,30]
[335853713,1724532861523,-2000.0,0.00027397,30]
[335853714,1724532861546,-2000.0,0.00027397,30]
[335853715,1724532861570,-2000.0,0.00027397,30]
[335853716,1724532861592,-2000.0,0.00027397,30]
[335853717,1724532861613,-2000.0,0.00027397,30]
[335853718,1724532861637,-2000.0,0.00027397,30]
[335853719,1724532861660,-2000.0,0.00027397,30]
[335853720,1724532861681,-2000.0,0.00027397,30]
[335853721,1724532861833,-2000.0,0.00027397,30]
[335853722,1724532861858,-2000.0,0.00027397,30]
[335853723,1724532861881,-2000.0,0.00027397,30]
[335853724,1724532861903,-2000.0,0.00027397,30]
[335853725,1724532861925,-2000.0,0.00027397,30]
[335853726,1724532861948,-2000.0,0.00027397,30]
[335853727,1724532861969,-2000.0,0.00027397,30]
[335853728,1724532861992,-2000.0,0.00027397,30]
[335853729,1724532862013,-951.6945911,0.00027397,30]
[335853730,1724532862035,-200.0,0.00027397,60]
[335853731,1724532862059,-150.0,0.00027438,120]
[335853732,1724532862081,-150.0,0.00027479,120]
[335853733,1724532862104,-150.0,0.00027483,120]
[335853734,1724532862128,-150.0,0.00027491,120]
[335853735,1724532862152,-1000.0,0.000275,120]
[335853736,1724532862173,-2110.0,0.000275,30]
[335853737,1724532862198,-150.0,0.00027502,120]
[335853738,1724532862220,-150.0,0.00027556,120]
[335853739,1724532862244,-150.0,0.00027574,120]
[335853740,1724532862268,-150.0,0.00027615,120]
[335853741,1724532862291,-150.0,0.00027693,120]
[335853742,1724532862314,-150.0,0.00027725,120]
[335853743,1724532862338,-150.0,0.00027735,120]
[335853744,1724532862359,-150.0,0.00027786,120]
[335853745,1724532862385,-150.0,0.00027792,120]
[335853746,1724532862407,-150.0,0.00027799,120]
[335853747,1724532862428,-150.0,0.0002785,120]
[335853748,1724532862450,-150.0,0.00027881,120]
[335853749,1724532862475,-150.0,0.00027886,120]
[335853750,1724532862498,-150.0,0.00027888,120]
[335853751,1724532862522,-2326.91,0.00027912,30]
[335853752,1724532862547,-150.0,0.00027939,120]
[335853753,1724532862569,-1000.0,0.00028,90]
[335853754,1724532862591,-1000.0,0.00028,120]
[335853755,1724532862613,-2110.0,0.00028,30]
[335853756,1724532862636,-213.28042458,0.00028,120]
[335853757,1724532862658,-150.0,0.00028036,120]
[335853758,1724532862680,-150.0,0.00028067,120]
[335853759,1724532862703,-150.0,0.00028159,120]
[335853760,1724532862726,-150.0,0.00028226,120]
[335853761,1724532862750,-150.0,0.00028379,120]
[335853762,1724532862773,-150.0,0.00028445,120]
[335853763,1724532862795,-150.0,0.00028445,120]
[335853764,1724532862818,-150.0,0.00028485,120]
[335853765,1724532862840,-1000.0,0.000285,30]
[335853766,1724532862862,-2110.0,0.000285,30]
[335853767,1724532862886,-150.0,0.00028517,120]
[335853768,1724532862908,-150.0,0.00028547,120]
[335853769,1724532862932,-150.0,0.00028553,120]
[335853770,1724532862954,-150.0,0.000286,120]
[335853771,1724532862977,-150.0,0.00028672,120]
[335853772,1724532862999,-2098.96204539,0.00028767,120]
[335853773,1724532863021,-150.0,0.00028786,120]
[335853774,1724532863044,-150.0,0.00028792,120]
[335853775,1724532863067,-150.0,0.00028838,120]
[335853776,1724532863090,-150.0,0.0002885,120]
[335853777,1724532863113,-150.0,0.00028907,120]
[335853778,1724532863136,-150.0,0.00028916,120]
[335853779,1724532863158,-150.0,0.00028957,120]
[335853780,1724532863184,-150.0,0.00028969,120]
[335853781,1724532863216,-1800.0,0.00029,30]
[335853782,1724532863241,-2382.55852477,0.00029,120]
[335853783,1724532863266,-1000.0,0.00029,30]
[335853784,1724532863291,-1000.0,0.00029,120]
[335853785,1724532863317,-2110.0,0.00029,30]